[Event "Gibraltar Masters 18th"]
[Site "Gibraltar"]
[Date "2020.01.24"]
[Round "4.3"]
[White "Mamedyarov, Shakhriyar"]
[Black "Krysa, Leandro"]
[Result "1/2-1/2"]
[ECO "D37"]
[WhiteElo "2770"]
[BlackElo "2522"]
[PlyCount "61"]
[EventDate "2020.01.21"]
[EventType "swiss"]
[EventRounds "10"]
[EventCountry "GGB"]
[SourceTitle "BritBase"]
[Source "John Saunders"]
[SourceDate "2021.06.05"]
[SourceVersion "1"]
[SourceVersionDate "2021.06.05"]
[SourceQuality "1"]
[TimeControl "40/100:0"]
[WhiteClock "0:12:02"]
[BlackClock "0:04:01"]

1. d4 {[%emt 0:00:00]} d5 {[%emt 0:00:00]} 2. c4 {[%emt 0:00:00]} e6 {[%emt 0:
00:00]} 3. Nf3 {[%emt 0:00:00]} Nf6 {[%emt 0:00:00]} 4. Nc3 {[%emt 0:00:00]}
Be7 {[%emt 0:00:00]} 5. Bf4 {[%emt 0:00:00]} O-O {[%emt 0:00:00]} 6. a3 {
[%emt 0:00:00]} b6 {[%emt 0:00:00]} 7. Qc2 {[%emt 0:00:00]} Bb7 {[%emt 0:00:00]
} 8. Rd1 {[%emt 0:00:00]} dxc4 {[%emt 0:00:00]} 9. e4 {[%emt 0:00:00]} b5 {
[%emt 0:00:00]} 10. h4 {[%emt 0:00:00]} c5 {[%emt 0:00:00]} 11. dxc5 {[%emt 0:
00:00]} Nbd7 {[%emt 0:00:00]} 12. Ng5 {[%emt 0:00:00]} e5 {[%emt 0:00:00]} 13.
Bxe5 {[%emt 0:00:00]} Nxe5 {[%emt 0:00:00]} 14. Rxd8 {[%emt 0:00:00]} Raxd8 {
[%emt 0:00:00]} 15. b4 {[%emt 0:00:00]} Nd3+ {[%emt 0:00:00]} 16. Bxd3 {
[%emt 0:00:00]} cxd3 {[%emt 0:00:00]} 17. Qd2 {[%emt 0:00:00]} h6 {[%emt 0:00:
00]} 18. Qf4 {[%emt 0:00:00]} d2+ {[%emt 0:00:00]} 19. Ke2 {[%emt 0:00:00]}
Rfe8 {[%emt 0:00:00]} 20. f3 {[%emt 0:00:00]} hxg5 {[%emt 0:00:00]} 21. hxg5 {
[%emt 0:00:00]} Nd5 {[%emt 0:00:00]} 22. Nxd5 {[%emt 0:00:00]} Bxd5 {[%emt 0:
00:00]} 23. Qh2 {[%emt 0:00:00]} Bc4+ {[%emt 0:00:00]} 24. Kf2 {[%emt 0:00:00]}
f5 {[%emt 0:00:00]} 25. Qh7+ {[%emt 0:00:00]} Kf8 {[%emt 0:00:00]} 26. Qxf5+ {
[%emt 0:00:00]} Kg8 {[%emt 0:00:00]} 27. Qh7+ {[%emt 0:00:00]} Kf8 {[%emt 0:00:
00]} 28. Qf5+ {[%emt 0:00:00]} Kg8 {[%emt 0:00:00]} 29. Qh7+ {[%emt 0:00:00]}
Kf8 {[%emt 0:00:00]} 30. Qf5+ {[%emt 0:00:00]} Kg8 {[%emt 0:00:00]} 31. Qh7+ {
[%emt 0:00:00]} 1/2-1/2

[Event "Gibraltar Masters 18th"]
[Site "Gibraltar"]
[Date "2020.01.24"]
[Round "4.4"]
[White "Vaibhav, Suri"]
[Black "Vachier-Lagrave, Maxime"]
[Result "1/2-1/2"]
[ECO "B92"]
[WhiteElo "2593"]
[BlackElo "2770"]
[PlyCount "60"]
[EventDate "2020.01.21"]
[EventType "swiss"]
[EventRounds "10"]
[EventCountry "GGB"]
[SourceTitle "BritBase"]
[Source "John Saunders"]
[SourceDate "2021.06.05"]
[SourceVersion "1"]
[SourceVersionDate "2021.06.05"]
[SourceQuality "1"]
[TimeControl "40/100:0"]
[WhiteClock "1:10:55"]
[BlackClock "1:22:30"]

1. e4 {[%emt 0:00:00]} c5 {[%emt 0:00:00]} 2. Nf3 {[%emt 0:00:00]} d6 {[%emt 0:
00:00]} 3. d4 {[%emt 0:00:00]} cxd4 {[%emt 0:00:00]} 4. Nxd4 {[%emt 0:00:00]}
Nf6 {[%emt 0:00:00]} 5. Nc3 {[%emt 0:00:00]} a6 {[%emt 0:00:00]} 6. Be2 {
[%emt 0:00:00]} e5 {[%emt 0:00:00]} 7. Nf3 {[%emt 0:00:00]} Be7 {[%emt 0:00:00]
} 8. Bg5 {[%emt 0:00:00]} Be6 {[%emt 0:00:00]} 9. Bxf6 {[%emt 0:00:00]} Bxf6 {
[%emt 0:00:00]} 10. O-O {[%emt 0:00:00]} O-O {[%emt 0:00:00]} 11. Nd5 {[%emt 0:
00:00]} Nd7 {[%emt 0:00:00]} 12. Bc4 {[%emt 0:00:00]} Rc8 {[%emt 0:00:00]} 13.
Bb3 {[%emt 0:00:00]} Nc5 {[%emt 0:00:00]} 14. Nxf6+ {[%emt 0:00:00]} Qxf6 {
[%emt 0:00:00]} 15. Qxd6 {[%emt 0:00:00]} Bxb3 {[%emt 0:00:00]} 16. Qxf6 {
[%emt 0:00:00]} gxf6 {[%emt 0:00:00]} 17. axb3 {[%emt 0:00:00]} Nxe4 {[%emt 0:
00:00]} 18. Rfe1 {[%emt 0:00:00]} Ng5 {[%emt 0:00:00]} 19. Nxg5 {[%emt 0:00:00]
} fxg5 {[%emt 0:00:00]} 20. Rxe5 {[%emt 0:00:00]} Rxc2 {[%emt 0:00:00]} 21.
Rxg5+ {[%emt 0:00:00]} Kh8 {[%emt 0:00:00]} 22. Rf5 {[%emt 0:00:00]} Rxb2 {
[%emt 0:00:00]} 23. Rf3 {[%emt 0:00:00]} Kg7 {[%emt 0:00:00]} 24. h3 {[%emt 0:
00:00]} Re2 {[%emt 0:00:00]} 25. Ra4 {[%emt 0:00:00]} Re7 {[%emt 0:00:00]} 26.
Rg4+ {[%emt 0:00:00]} Kh8 {[%emt 0:00:00]} 27. Rgf4 {[%emt 0:00:00]} Kg7 {
[%emt 0:00:00]} 28. Rg4+ {[%emt 0:00:00]} Kh8 {[%emt 0:00:00]} 29. Rgf4 {
[%emt 0:00:00]} Kg7 {[%emt 0:00:00]} 30. Rg4+ {[%emt 0:00:04]} Kh8 1/2-1/2

[Event "Gibraltar Masters 18th"]
[Site "Gibraltar"]
[Date "2020.01.24"]
[Round "4.5"]
[White "Wang, Hao"]
[Black "Moussard, Jules"]
[Result "1-0"]
[ECO "B90"]
[WhiteElo "2758"]
[BlackElo "2600"]
[PlyCount "101"]
[EventDate "2020.01.21"]
[EventType "swiss"]
[EventRounds "10"]
[EventCountry "GGB"]
[SourceTitle "BritBase"]
[Source "John Saunders"]
[SourceDate "2021.06.05"]
[SourceVersion "1"]
[SourceVersionDate "2021.06.05"]
[SourceQuality "1"]
[TimeControl "40/100:0"]
[WhiteClock "0:45:40"]
[BlackClock "0:44:48"]

1. e4 {[%emt 0:00:00]} c5 {[%emt 0:00:00]} 2. Nf3 {[%emt 0:00:00]} d6 {[%emt 0:
00:00]} 3. d4 {[%emt 0:00:00]} Nf6 {[%emt 0:00:00]} 4. Nc3 {[%emt 0:00:00]}
cxd4 {[%emt 0:00:00]} 5. Nxd4 {[%emt 0:00:00]} a6 {[%emt 0:00:00]} 6. Be3 {
[%emt 0:00:00]} Nbd7 {[%emt 0:00:00]} 7. g4 {[%emt 0:00:00]} h6 {[%emt 0:00:00]
} 8. a4 {[%emt 0:00:00]} Nc5 {[%emt 0:00:00]} 9. f3 {[%emt 0:00:00]} e5 {
[%emt 0:00:00]} 10. Nb3 {[%emt 0:00:00]} Nxb3 {[%emt 0:00:00]} 11. cxb3 {
[%emt 0:00:00]} Be6 {[%emt 0:00:00]} 12. Bc4 {[%emt 0:00:00]} Rc8 {[%emt 0:00:
00]} 13. Qd3 {[%emt 0:00:00]} Qc7 {[%emt 0:00:00]} 14. Bxe6 {[%emt 0:00:00]}
fxe6 {[%emt 0:00:00]} 15. h4 {[%emt 0:00:00]} h5 {[%emt 0:00:00]} 16. g5 {
[%emt 0:00:00]} Nd7 {[%emt 0:00:00]} 17. O-O-O {[%emt 0:00:00]} Be7 {[%emt 0:
00:00]} 18. Kb1 {[%emt 0:00:00]} O-O {[%emt 0:00:00]} 19. g6 {[%emt 0:00:00]}
Qd8 {[%emt 0:00:00]} 20. Bg5 {[%emt 0:00:00]} Nf6 {[%emt 0:00:00]} 21. Rhg1 {
[%emt 0:00:00]} Qe8 {[%emt 0:00:00]} 22. Rg2 {[%emt 0:00:00]} Qxg6 {[%emt 0:00:
00]} 23. Rdg1 {[%emt 0:00:00]} Qf7 {[%emt 0:00:00]} 24. Bh6 {[%emt 0:00:00]}
Ne8 {[%emt 0:00:00]} 25. Bxg7 {[%emt 0:00:00]} Nxg7 {[%emt 0:00:00]} 26. Rxg7+
{[%emt 0:00:00]} Qxg7 {[%emt 0:00:00]} 27. Rxg7+ {[%emt 0:00:00]} Kxg7 {
[%emt 0:00:00]} 28. Ne2 {[%emt 0:00:00]} Rf7 {[%emt 0:00:00]} 29. f4 {[%emt 0:
00:00]} exf4 {[%emt 0:00:00]} 30. Nd4 {[%emt 0:00:00]} Rf6 {[%emt 0:00:00]} 31.
Qf3 {[%emt 0:00:00]} Rh8 {[%emt 0:00:00]} 32. Qc3 {[%emt 0:00:00]} Kf7 {
[%emt 0:00:00]} 33. e5 {[%emt 0:00:00]} dxe5 {[%emt 0:00:00]} 34. Nf3 {[%emt 0:
00:00]} Bd6 {[%emt 0:00:00]} 35. Ng5+ {[%emt 0:00:00]} Ke7 {[%emt 0:00:00]} 36.
Qf3 {[%emt 0:00:00]} Rc8 {[%emt 0:00:00]} 37. Qxb7+ {[%emt 0:00:00]} Rc7 {
[%emt 0:00:00]} 38. Qxa6 {[%emt 0:00:00]} Rf8 {[%emt 0:00:00]} 39. Qe2 {
[%emt 0:00:00]} Kd7 {[%emt 0:00:00]} 40. b4 {[%emt 0:00:47]} Be7 {[%emt 0:00:
17]} 41. Qd3+ {[%emt 0:00:00]} Kc8 {[%emt 0:00:00]} 42. Qa6+ {[%emt 0:00:00]}
Kb8 {[%emt 0:00:00]} 43. Nxe6 {[%emt 0:00:00]} Rf6 {[%emt 0:00:00]} 44. Qb5+ {
[%emt 0:00:00]} Rb7 {[%emt 0:00:00]} 45. Qxe5+ {[%emt 0:00:00]} Kc8 {[%emt 0:
00:00]} 46. Nxf4 {[%emt 0:00:00]} Rxf4 {[%emt 0:00:00]} 47. Qxf4 {[%emt 0:00:
00]} Rxb4 {[%emt 0:00:00]} 48. Qf7 {[%emt 0:00:00]} Bd8 {[%emt 0:00:00]} 49. a5
{[%emt 0:00:00]} Kb8 {[%emt 0:00:00]} 50. a6 {[%emt 0:00:00]} Rb6 {[%emt 0:00:
00]} 51. a7+ {[%emt 0:00:00]} 1-0

[Event "Gibraltar Masters 18th"]
[Site "Gibraltar"]
[Date "2020.01.24"]
[Round "4.7"]
[White "Peralta, Fernando"]
[Black "Le, Quang Liem"]
[Result "1/2-1/2"]
[ECO "E48"]
[WhiteElo "2574"]
[BlackElo "2713"]
[PlyCount "69"]
[EventDate "2020.01.21"]
[EventType "swiss"]
[EventRounds "10"]
[EventCountry "GGB"]
[SourceTitle "BritBase"]
[Source "John Saunders"]
[SourceDate "2021.06.05"]
[SourceVersion "1"]
[SourceVersionDate "2021.06.05"]
[SourceQuality "1"]
[TimeControl "40/100:0"]
[WhiteClock "0:04:35"]
[BlackClock "0:24:28"]

1. d4 {[%emt 0:00:00]} Nf6 {[%emt 0:00:00]} 2. c4 {[%emt 0:00:00]} e6 {[%emt 0:
00:00]} 3. Nc3 {[%emt 0:00:00]} Bb4 {[%emt 0:00:00]} 4. e3 {[%emt 0:00:00]} O-O
{[%emt 0:00:00]} 5. Bd3 {[%emt 0:00:00]} d5 {[%emt 0:00:00]} 6. cxd5 {[%emt 0:
00:00]} exd5 {[%emt 0:00:00]} 7. Nge2 {[%emt 0:00:00]} Re8 {[%emt 0:00:00]} 8.
Bd2 {[%emt 0:00:00]} Bd6 {[%emt 0:00:00]} 9. Rc1 {[%emt 0:00:00]} a6 {[%emt 0:
00:00]} 10. O-O {[%emt 0:00:00]} b6 {[%emt 0:00:00]} 11. Nf4 {[%emt 0:00:00]}
Bb7 {[%emt 0:00:00]} 12. Qf3 {[%emt 0:00:00]} c5 {[%emt 0:00:00]} 13. Nfxd5 {
[%emt 0:00:00]} Nxd5 {[%emt 0:00:00]} 14. Bc4 {[%emt 0:00:00]} Bxh2+ {[%emt 0:
00:00]} 15. Kxh2 {[%emt 0:00:00]} Qc7+ {[%emt 0:00:00]} 16. Qg3 {[%emt 0:00:00]
} Qxg3+ {[%emt 0:00:00]} 17. Kxg3 {[%emt 0:00:00]} Nf6 {[%emt 0:00:00]} 18.
dxc5 {[%emt 0:00:00]} Re5 {[%emt 0:00:00]} 19. f3 {[%emt 0:00:00]} Rxc5 {
[%emt 0:00:00]} 20. Bb3 {[%emt 0:00:00]} Nbd7 {[%emt 0:00:00]} 21. e4 {[%emt 0:
00:00]} Rac8 {[%emt 0:00:00]} 22. Na4 {[%emt 0:00:00]} Rxc1 {[%emt 0:00:00]}
23. Rxc1 {[%emt 0:00:00]} b5 {[%emt 0:00:00]} 24. Rxc8+ {[%emt 0:00:00]} Bxc8 {
[%emt 0:00:00]} 25. Nc3 {[%emt 0:00:00]} Ne5 {[%emt 0:00:00]} 26. Bc2 {[%emt 0:
00:00]} h6 {[%emt 0:00:00]} 27. b3 {[%emt 0:00:00]} g5 {[%emt 0:00:00]} 28. Ne2
{[%emt 0:00:00]} Nc6 {[%emt 0:00:00]} 29. Kf2 {[%emt 0:00:00]} Nd7 {[%emt 0:00:
00]} 30. Ke3 {[%emt 0:00:00]} Nde5 {[%emt 0:00:00]} 31. Nd4 {[%emt 0:00:00]} f6
{[%emt 0:00:00]} 32. Nxc6 {[%emt 0:00:00]} Nxc6 {[%emt 0:00:00]} 33. a4 {
[%emt 0:00:00]} Be6 {[%emt 0:00:00]} 34. axb5 {[%emt 0:00:00]} axb5 {[%emt 0:
00:00]} 35. Bd3 {[%emt 0:00:00]} 1/2-1/2

[Event "Gibraltar Masters 18th"]
[Site "Gibraltar"]
[Date "2020.01.24"]
[Round "4.8"]
[White "Alekseenko, Kirill"]
[Black "Aryan, Chopra"]
[Result "1/2-1/2"]
[ECO "C11"]
[WhiteElo "2704"]
[BlackElo "2562"]
[PlyCount "126"]
[EventDate "2020.01.21"]
[EventType "swiss"]
[EventRounds "10"]
[EventCountry "GGB"]
[SourceTitle "BritBase"]
[Source "John Saunders"]
[SourceDate "2021.06.05"]
[SourceVersion "1"]
[SourceVersionDate "2021.06.05"]
[SourceQuality "1"]
[TimeControl "40/100:0"]
[WhiteClock "0:25:19"]
[BlackClock "0:14:23"]

1. e4 {[%emt 0:00:00]} e6 {[%emt 0:00:00]} 2. d4 {[%emt 0:00:00]} d5 {[%emt 0:
00:00]} 3. Nc3 {[%emt 0:00:00]} Nf6 {[%emt 0:00:00]} 4. e5 {[%emt 0:00:00]}
Nfd7 {[%emt 0:00:00]} 5. Nce2 {[%emt 0:00:00]} c5 {[%emt 0:00:00]} 6. c3 {
[%emt 0:00:00]} Nc6 {[%emt 0:00:00]} 7. Nf3 {[%emt 0:00:00]} Be7 {[%emt 0:00:
00]} 8. g3 {[%emt 0:00:00]} O-O {[%emt 0:00:00]} 9. Bg2 {[%emt 0:00:00]} b5 {
[%emt 0:00:00]} 10. a3 {[%emt 0:00:00]} a5 {[%emt 0:00:00]} 11. h4 {[%emt 0:00:
00]} b4 {[%emt 0:00:00]} 12. axb4 {[%emt 0:00:00]} cxd4 {[%emt 0:00:00]} 13.
Nexd4 {[%emt 0:00:00]} Nxd4 {[%emt 0:00:00]} 14. Qxd4 {[%emt 0:00:00]} Bb7 {
[%emt 0:00:00]} 15. Rxa5 {[%emt 0:00:00]} Rxa5 {[%emt 0:00:00]} 16. bxa5 {
[%emt 0:00:00]} Qxa5 {[%emt 0:00:00]} 17. O-O {[%emt 0:00:00]} Qb6 {[%emt 0:00:
00]} 18. Qf4 {[%emt 0:00:00]} Nc5 {[%emt 0:00:00]} 19. Qg4 {[%emt 0:00:00]} Ra8
{[%emt 0:00:00]} 20. Bh6 {[%emt 0:00:00]} Bf8 {[%emt 0:00:00]} 21. h5 {[%emt 0:
00:00]} Kh8 {[%emt 0:00:00]} 22. Be3 {[%emt 0:00:00]} Qc7 {[%emt 0:00:00]} 23.
Rd1 {[%emt 0:00:00]} h6 {[%emt 0:00:00]} 24. Qf4 {[%emt 0:00:00]} Ra2 {[%emt 0:
00:00]} 25. b4 {[%emt 0:00:00]} Ne4 {[%emt 0:00:00]} 26. Rc1 {[%emt 0:00:00]}
Kg8 {[%emt 0:00:00]} 27. Bf1 {[%emt 0:00:00]} Qb8 {[%emt 0:00:00]} 28. Bd3 {
[%emt 0:00:00]} Be7 {[%emt 0:00:00]} 29. Qg4 {[%emt 0:00:00]} Kh8 {[%emt 0:00:
00]} 30. c4 {[%emt 0:00:00]} d4 {[%emt 0:00:00]} 31. Bxh6 {[%emt 0:00:00]} gxh6
{[%emt 0:00:00]} 32. Bxe4 {[%emt 0:00:00]} Bxe4 {[%emt 0:00:00]} 33. Qxe4 {
[%emt 0:00:00]} Qxb4 {[%emt 0:00:26]} 34. Qf4 {[%emt 0:00:00]} Kg7 {[%emt 0:00:
00]} 35. Qg4+ {[%emt 0:00:00]} Kf8 {[%emt 0:00:00]} 36. Qxd4 {[%emt 0:00:00]}
Bc5 {[%emt 0:00:03]} 37. Qd8+ {[%emt 0:00:00]} Kg7 {[%emt 0:00:00]} 38. Rf1 {
[%emt 0:00:33]} Qxc4 {[%emt 0:00:13]} 39. Kg2 {[%emt 0:00:18]} Qe2 {[%emt 0:00:
10]} 40. Qf6+ {[%emt 0:00:02]} Kg8 {[%emt 0:00:00]} 41. Nh2 {[%emt 0:00:00]}
Qxh5 {[%emt 0:00:00]} 42. Qf4 {[%emt 0:00:00]} Qf5 {[%emt 0:00:00]} 43. Ng4 {
[%emt 0:00:00]} Qxf4 {[%emt 0:00:00]} 44. gxf4 {[%emt 0:00:00]} Kg7 {[%emt 0:
00:00]} 45. Rh1 {[%emt 0:00:00]} Bd4 {[%emt 0:00:00]} 46. Kg3 {[%emt 0:00:00]}
Ra3+ {[%emt 0:00:00]} 47. Kg2 {[%emt 0:00:00]} Ra2 {[%emt 0:00:00]} 48. Rh3 {
[%emt 0:00:00]} Ba7 {[%emt 0:00:00]} 49. Rh2 {[%emt 0:00:00]} Bb6 {[%emt 0:00:
00]} 50. Rh5 {[%emt 0:00:00]} Bc5 {[%emt 0:00:00]} 51. Rh4 {[%emt 0:00:00]} Rb2
{[%emt 0:00:00]} 52. Rh1 {[%emt 0:00:00]} Ra2 {[%emt 0:00:00]} 53. Kg3 {
[%emt 0:00:00]} Bd4 {[%emt 0:00:00]} 54. Rh2 {[%emt 0:00:00]} Ra3+ {[%emt 0:00:
00]} 55. f3 {[%emt 0:00:00]} Ra1 {[%emt 0:00:00]} 56. Rd2 {[%emt 0:00:00]} Ra4
{[%emt 0:00:00]} 57. Rd3 {[%emt 0:00:00]} h5 {[%emt 0:00:00]} 58. Nf6 {[%emt 0:
00:00]} h4+ {[%emt 0:00:00]} 59. Kh3 {[%emt 0:00:00]} Kg6 {[%emt 0:00:00]} 60.
Rd2 {[%emt 0:00:00]} Kf5 {[%emt 0:00:00]} 61. Nh5 {[%emt 0:00:00]} Kg6 {
[%emt 0:00:00]} 62. Nf6 {[%emt 0:00:00]} Kf5 {[%emt 0:00:00]} 63. Nh5 {[%emt 0:
00:00]} Kg6 {[%emt 0:00:00]} 1/2-1/2

[Event "Gibraltar Masters 18th"]
[Site "Gibraltar"]
[Date "2020.01.24"]
[Round "4.9"]
[White "Antipov, Mikhail Al."]
[Black "Ivanchuk, Vassily"]
[Result "1-0"]
[ECO "B13"]
[WhiteElo "2562"]
[BlackElo "2698"]
[PlyCount "75"]
[EventDate "2020.01.21"]
[EventType "swiss"]
[EventRounds "10"]
[EventCountry "GGB"]
[SourceTitle "BritBase"]
[Source "John Saunders"]
[SourceDate "2021.06.05"]
[SourceVersion "1"]
[SourceVersionDate "2021.06.05"]
[SourceQuality "1"]
[TimeControl "40/100:0"]
[WhiteClock "0:04:53"]
[BlackClock "1:05:01"]

1. e4 {[%emt 0:00:00]} c6 {[%emt 0:00:00]} 2. d4 {[%emt 0:00:00]} d5 {[%emt 0:
00:00]} 3. exd5 {[%emt 0:00:00]} cxd5 {[%emt 0:00:00]} 4. Bd3 {[%emt 0:00:00]}
Nf6 {[%emt 0:00:00]} 5. h3 {[%emt 0:00:00]} g6 {[%emt 0:00:00]} 6. Nf3 {
[%emt 0:00:00]} Bf5 {[%emt 0:00:00]} 7. Be2 {[%emt 0:00:00]} Bg7 {[%emt 0:00:
00]} 8. O-O {[%emt 0:00:00]} O-O {[%emt 0:00:00]} 9. c3 {[%emt 0:00:00]} Qc7 {
[%emt 0:00:00]} 10. Be3 {[%emt 0:00:00]} Nc6 {[%emt 0:00:00]} 11. Nbd2 {
[%emt 0:00:00]} Rad8 {[%emt 0:00:00]} 12. Re1 {[%emt 0:00:00]} Rfe8 {[%emt 0:
00:00]} 13. Rc1 {[%emt 0:00:00]} h6 {[%emt 0:00:00]} 14. b4 {[%emt 0:00:00]} b6
{[%emt 0:00:00]} 15. b5 {[%emt 0:00:00]} Na5 {[%emt 0:00:00]} 16. c4 {[%emt 0:
00:00]} dxc4 {[%emt 0:00:00]} 17. Nxc4 {[%emt 0:00:00]} Nxc4 {[%emt 0:00:00]}
18. Bxc4 {[%emt 0:00:00]} Qb7 {[%emt 0:00:00]} 19. Ne5 {[%emt 0:00:00]} e6 {
[%emt 0:00:00]} 20. Nc6 {[%emt 0:00:00]} Rd7 {[%emt 0:00:00]} 21. Bf4 {[%emt 0:
00:00]} Be4 {[%emt 0:00:00]} 22. Be5 {[%emt 0:00:00]} Bd5 {[%emt 0:00:00]} 23.
Bd3 {[%emt 0:00:00]} Bxa2 {[%emt 0:00:00]} 24. Ra1 {[%emt 0:00:00]} Bd5 {
[%emt 0:00:00]} 25. Rxa7 {[%emt 0:00:00]} Qc8 {[%emt 0:00:00]} 26. Ra1 {
[%emt 0:00:00]} Qb7 {[%emt 0:00:00]} 27. Qa4 {[%emt 0:00:00]} Nh5 {[%emt 0:00:
00]} 28. Re3 {[%emt 0:00:00]} Rc8 {[%emt 0:00:00]} 29. Bf1 {[%emt 0:00:00]}
Bxe5 {[%emt 0:00:00]} 30. dxe5 {[%emt 0:00:00]} Rdc7 {[%emt 0:00:00]} 31. g4 {
[%emt 0:00:00]} Ng7 {[%emt 0:00:00]} 32. Bg2 {[%emt 0:00:00]} Rd7 {[%emt 0:00:
00]} 33. Qf4 {[%emt 0:00:00]} Kh7 {[%emt 0:00:00]} 34. Rea3 {[%emt 0:00:00]}
Bxg2 35. Kxg2 {[%emt 0:00:00]} Rxc6 {[%emt 0:00:00]} 36. bxc6 {[%emt 0:00:00]}
Qxc6+ {[%emt 0:00:00]} 37. Qf3 {[%emt 0:00:00]} Qc7 {[%emt 0:00:00]} 38. Qe4 {
[%emt 0:00:00]} 1-0

[Event "Gibraltar Masters 18th"]
[Site "Gibraltar"]
[Date "2020.01.24"]
[Round "4.10"]
[White "Maze, Sebastien"]
[Black "Jones, Gawain C B"]
[Result "1/2-1/2"]
[ECO "C77"]
[WhiteElo "2550"]
[BlackElo "2679"]
[PlyCount "93"]
[EventDate "2020.01.21"]
[EventType "swiss"]
[EventRounds "10"]
[EventCountry "GGB"]
[SourceTitle "BritBase"]
[Source "John Saunders"]
[SourceDate "2021.06.05"]
[SourceVersion "1"]
[SourceVersionDate "2021.06.05"]
[SourceQuality "1"]
[TimeControl "40/100:0"]
[WhiteClock "0:33:23"]
[BlackClock "0:48:45"]

1. e4 {[%emt 0:00:00]} e5 {[%emt 0:00:00]} 2. Nf3 {[%emt 0:00:00]} Nc6 {
[%emt 0:00:00]} 3. Bb5 {[%emt 0:00:00]} a6 {[%emt 0:00:00]} 4. Ba4 {[%emt 0:00:
00]} Nf6 {[%emt 0:00:00]} 5. Nc3 {[%emt 0:00:00]} Bc5 {[%emt 0:00:00]} 6. Bxc6
{[%emt 0:00:00]} dxc6 {[%emt 0:00:00]} 7. d3 {[%emt 0:00:00]} Qe7 {[%emt 0:00:
00]} 8. h3 {[%emt 0:00:00]} Nd7 {[%emt 0:00:00]} 9. Qe2 {[%emt 0:00:00]} Nf8 {
[%emt 0:00:00]} 10. Be3 {[%emt 0:00:00]} Bd6 {[%emt 0:00:00]} 11. d4 {[%emt 0:
00:00]} f6 {[%emt 0:00:00]} 12. O-O-O {[%emt 0:00:00]} Be6 {[%emt 0:00:00]} 13.
Kb1 {[%emt 0:00:00]} Nd7 {[%emt 0:00:00]} 14. d5 {[%emt 0:00:00]} Bf7 {[%emt 0:
00:00]} 15. Nh4 {[%emt 0:00:00]} g6 {[%emt 0:00:00]} 16. Nf3 {[%emt 0:00:00]}
Bb4 {[%emt 0:00:00]} 17. dxc6 {[%emt 0:00:00]} bxc6 {[%emt 0:00:00]} 18. Na4 {
[%emt 0:00:00]} O-O {[%emt 0:00:00]} 19. h4 {[%emt 0:00:00]} Nb6 {[%emt 0:00:
00]} 20. Nxb6 {[%emt 0:00:00]} cxb6 {[%emt 0:00:00]} 21. h5 {[%emt 0:00:00]} g5
{[%emt 0:00:00]} 22. Nh2 {[%emt 0:00:00]} Qe6 {[%emt 0:00:00]} 23. b3 {[%emt 0:
00:00]} a5 {[%emt 0:00:00]} 24. Ng4 {[%emt 0:00:00]} a4 {[%emt 0:00:00]} 25.
Nh6+ {[%emt 0:00:00]} Kg7 {[%emt 0:00:00]} 26. Nxf7 {[%emt 0:00:00]} Rxf7 {
[%emt 0:00:00]} 27. h6+ {[%emt 0:00:00]} Kg8 {[%emt 0:00:00]} 28. Bxb6 {
[%emt 0:00:00]} Rb7 {[%emt 0:00:00]} 29. Rd8+ {[%emt 0:00:00]} Rxd8 {[%emt 0:
00:00]} 30. Bxd8 {[%emt 0:00:00]} Bc3 {[%emt 0:00:00]} 31. Rd1 {[%emt 0:00:00]}
axb3 {[%emt 0:00:00]} 32. cxb3 {[%emt 0:00:00]} Bd4 {[%emt 0:00:00]} 33. Qc2 {
[%emt 0:00:00]} Kf7 {[%emt 0:00:00]} 34. Ba5 {[%emt 0:00:00]} Kg6 {[%emt 0:00:
00]} 35. Bc3 {[%emt 0:00:00]} Bxc3 {[%emt 0:00:00]} 36. Qxc3 {[%emt 0:00:00]}
Kxh6 {[%emt 0:00:00]} 37. f3 {[%emt 0:00:00]} Kg6 {[%emt 0:00:00]} 38. g4 {
[%emt 0:00:00]} h5 {[%emt 0:00:00]} 39. gxh5+ {[%emt 0:00:00]} Kxh5 {[%emt 0:
00:00]} 40. Rh1+ {[%emt 0:00:00]} Kg6 {[%emt 0:00:00]} 41. Rc1 {[%emt 0:00:26]}
Rb8 {[%emt 0:00:00]} 42. Qc4 {[%emt 0:00:00]} Qh3 {[%emt 0:00:00]} 43. Qe2 {
[%emt 0:00:00]} Qd7 {[%emt 0:00:00]} 44. Rd1 {[%emt 0:00:00]} Qh3 {[%emt 0:00:
00]} 45. Rc1 {[%emt 0:00:00]} Qd7 {[%emt 0:00:00]} 46. Rd1 {[%emt 0:00:00]} Qh3
{[%emt 0:00:00]} 47. Rc1 {[%emt 0:00:00]} 1/2-1/2

[Event "Gibraltar Masters 18th"]
[Site "Gibraltar"]
[Date "2020.01.24"]
[Round "4.11"]
[White "Maghsoodloo, Parham"]
[Black "Kadric, Denis"]
[Result "1-0"]
[ECO "B07"]
[WhiteElo "2674"]
[BlackElo "2585"]
[PlyCount "51"]
[EventDate "2020.01.21"]
[EventType "swiss"]
[EventRounds "10"]
[EventCountry "GGB"]
[SourceTitle "BritBase"]
[Source "John Saunders"]
[SourceDate "2021.06.05"]
[SourceVersion "1"]
[SourceVersionDate "2021.06.05"]
[SourceQuality "1"]
[TimeControl "40/100:0"]
[WhiteClock "0:41:27"]
[BlackClock "0:09:10"]

1. d4 {[%emt 0:00:00]} d6 {[%emt 0:00:00]} 2. e4 {[%emt 0:00:00]} Nf6 {[%emt 0:
00:00]} 3. Nc3 {[%emt 0:00:00]} e5 {[%emt 0:00:00]} 4. Nge2 {[%emt 0:00:00]}
Be7 {[%emt 0:00:00]} 5. g3 {[%emt 0:00:00]} O-O {[%emt 0:00:00]} 6. Bg2 {
[%emt 0:00:00]} c6 {[%emt 0:00:00]} 7. a4 {[%emt 0:00:00]} a5 {[%emt 0:00:00]}
8. O-O {[%emt 0:00:00]} Na6 {[%emt 0:00:00]} 9. h3 {[%emt 0:00:00]} Nb4 {
[%emt 0:00:00]} 10. f4 {[%emt 0:00:00]} Re8 {[%emt 0:00:00]} 11. Be3 {[%emt 0:
00:00]} Bf8 {[%emt 0:00:00]} 12. Bf2 {[%emt 0:00:00]} exf4 {[%emt 0:00:00]} 13.
Nxf4 {[%emt 0:00:00]} d5 {[%emt 0:00:00]} 14. e5 {[%emt 0:00:00]} Nd7 {[%emt 0:
00:00]} 15. g4 {[%emt 0:00:00]} f6 {[%emt 0:00:00]} 16. Bh4 {[%emt 0:00:00]}
Be7 {[%emt 0:00:00]} 17. Ne6 {[%emt 0:00:00]} Qb6 {[%emt 0:00:00]} 18. Kh1 {
[%emt 0:00:00]} Bd8 {[%emt 0:00:00]} 19. Nxd8 {[%emt 0:00:00]} Qxd8 {[%emt 0:
00:00]} 20. Ne2 {[%emt 0:00:00]} Rf8 {[%emt 0:00:00]} 21. Qd2 {[%emt 0:00:00]}
Na6 {[%emt 0:00:00]} 22. Ng3 {[%emt 0:00:00]} Nc7 {[%emt 0:00:00]} 23. Nh5 {
[%emt 0:00:00]} Ne6 {[%emt 0:00:00]} 24. exf6 {[%emt 0:00:00]} Nxf6 {[%emt 0:
00:00]} 25. Bxf6 {[%emt 0:00:00]} gxf6 {[%emt 0:00:00]} 26. Qh6 {[%emt 0:00:00]
} 1-0